fUST/lending_fUST_20250909
["ID","MTS","AMOUNT","RATE_DAILY","PERIOD"]
[384418458,1757401847102,-151.0,0.00013698,2]
[384418459,1757401847112,-152.197952,0.00013698,2]
[384418460,1757401847121,-480.0,0.00013698,2]
[384418461,1757401847131,-480.0,0.00013698,2]
[384418462,1757401847141,-946.05,0.00013698,2]
[384418463,1757401847150,-480.0,0.00013698,2]
[384418464,1757401847160,-480.0,0.00013698,2]
[384418465,1757401847169,-480.0,0.00013698,2]
[384418466,1757401847179,-593.76,0.00013698,2]
[384418467,1757401847188,-480.0,0.00013698,2]
[384418468,1757401847197,-480.0,0.00013698,2]
[384418469,1757401847206,-151.0,0.00013698,2]
[384418470,1757401847216,-151.0,0.00013698,2]
[384418471,1757401847225,-480.0,0.00013698,2]
[384418472,1757401847235,-151.0,0.00013698,2]
[384418473,1757401847246,-151.0,0.00013698,2]
[384418474,1757401847255,-151.0,0.00013698,2]
[384418475,1757401847265,-151.745553,0.00013698,2]
[384418476,1757401847275,-480.0,0.00013698,2]
[384418477,1757401847284,-480.0,0.00013698,2]
[384418478,1757401847293,-480.0,0.00013698,2]
[384418479,1757401847303,-480.0,0.00013698,2]
[384418480,1757401847312,-57.74690522,0.00013698,2]
[384418481,1757401847326,-585.77309478,0.00013698,2]
[384418482,1757401847335,-480.0,0.00013698,2]
[384418483,1757401847345,-480.0,0.00013698,2]
[384418484,1757401847354,-480.0,0.00013698,2]
[384418485,1757401847363,-480.0,0.00013698,2]
[384418486,1757401847373,-480.0,0.00013698,2]
[384418487,1757401847383,-480.0,0.00013698,2]
[384418488,1757401847392,-480.0,0.00013698,2]
[384418489,1757401847402,-522.79,0.00013698,2]
[384418490,1757401847411,-480.0,0.00013698,2]
[384418491,1757401847420,-480.0,0.00013698,2]
[384418492,1757401847430,-480.0,0.00013698,2]
[384418493,1757401847439,-480.0,0.00013698,2]
[384418494,1757401847448,-480.0,0.00013698,2]
[384418495,1757401847457,-481.81971484,0.00013698,2]
[384418496,1757401847467,-480.0,0.00013698,2]
[384418497,1757401847476,-480.96234308,0.00013698,2]
[384418498,1757401847486,-480.0,0.00013698,2]
[384418499,1757401847495,-480.0,0.00013698,2]
[384418500,1757401847504,-480.0,0.00013698,2]
[384418501,1757401847513,-480.0,0.00013698,2]
[384418502,1757401847523,-480.0,0.00013698,2]
[384418503,1757401847532,-480.0,0.00013698,2]
[384418504,1757401847542,-481.12762775,0.00013698,2]
[384418505,1757401847552,-480.0,0.00013698,2]
[384418506,1757401847561,-480.0,0.00013698,2]
[384418507,1757401847570,-316.178144,0.00013698,2]
[384418508,1757401847580,-316.178144,0.00013698,2]
[384418509,1757401847590,-316.178144,0.00013698,2]
[384418510,1757401847600,-480.0,0.00013698,2]
[384418511,1757401847610,-316.178144,0.00013698,2]
[384418512,1757401847620,-316.178144,0.00013698,2]
[384418513,1757401847630,-316.178144,0.00013698,2]
[384418514,1757401847639,-486.13882736,0.00013698,2]
[384418515,1757401847648,-481.26869134,0.00013698,2]
[384418516,1757401847657,-363.2069197,0.00013698,2]
[384418517,1757401847667,-316.178144,0.00013698,2]
[384418518,1757401847676,-316.178144,0.00013698,2]
[384418519,1757401847685,-316.178144,0.00013698,2]
[384418520,1757401847698,-316.178144,0.00013698,2]
[384418521,1757401847707,-316.178144,0.00013698,2]
[384418522,1757401847716,-498.17901436,0.00013698,2]
[384418523,1757401847726,-316.178144,0.00013698,2]
[384418524,1757401847736,-316.178144,0.00013698,2]
[384418525,1757401847745,-480.0,0.00013698,2]
[384418526,1757401847755,-316.178144,0.00013698,2]
[384418527,1757401847764,-316.178144,0.00013698,2]
[384418528,1757401847774,-316.178144,0.00013698,2]
[384418529,1757401847784,-480.0,0.00013698,2]
[384418530,1757401847937,-480.0,0.00013698,2]
[384418531,1757401847948,-316.178144,0.00013698,2]
[384418532,1757401847958,-316.178144,0.00013698,2]
[384418533,1757401847968,-316.178144,0.00013698,2]
[384418534,1757401847977,-480.0,0.00013698,2]
[384418535,1757401847987,-316.17815,0.00013698,2]
[384418536,1757401847996,-151.0,0.00013698,2]
[384418537,1757401848006,-151.0,0.00013698,2]
[384418538,1757401848015,-151.0,0.00013698,2]
[384418539,1757401848025,-480.0,0.00013698,2]
[384418540,1757401848035,-151.0,0.00013698,2]
[384418541,1757401848045,-151.0,0.00013698,2]
[384418542,1757401848055,-151.0,0.00013698,2]
[384418543,1757401848065,-151.0,0.00013698,2]
[384418544,1757401848074,-151.0,0.00013698,2]
[384418545,1757401848084,-151.0,0.00013698,2]
[384418546,1757401848093,-151.0,0.00013698,2]
[384418547,1757401848103,-151.0,0.00013698,2]
[384418548,1757401848112,-151.0,0.00013698,2]
[384418549,1757401848122,-151.0,0.00013698,2]
[384418550,1757401848132,-176.323512,0.00013698,2]
[384418551,1757401848142,-151.0,0.00013698,2]
[384418552,1757401848152,-151.0,0.00013698,2]
[384418553,1757401848162,-151.0,0.00013698,2]
[384418554,1757401848172,-151.0,0.00013698,2]
[384418555,1757401848182,-151.0,0.00013698,2]
[384418556,1757401848192,-480.0,0.00013698,2]
[384418557,1757401848202,-151.0,0.00013698,2]
[384418558,1757401848212,-480.0,0.00013698,2]
[384418559,1757401848222,-151.0,0.00013698,2]
[384418560,1757401848232,-151.0,0.00013698,2]
[384418561,1757401848241,-151.0,0.00013698,2]
[384418562,1757401848251,-151.0,0.00013698,2]
[384418563,1757401848260,-152.682197,0.00013698,2]
[384418564,1757401848270,-252.72052431,0.00013698,2]
[384418565,1757401848280,-480.0,0.00013698,2]
[384418566,1757401848289,-480.0,0.00013698,2]
[384418567,1757401848299,-480.0,0.00013698,2]
[384418568,1757401848309,-151.0,0.00013698,2]
[384418569,1757401848319,-480.0,0.00013698,2]
[384418570,1757401848329,-151.0,0.00013698,2]
[384418571,1757401848338,-151.0,0.00013698,2]
[384418572,1757401848348,-151.0,0.00013698,2]
[384418573,1757401848358,-480.0,0.00013698,2]
[384418574,1757401848368,-151.0,0.00013698,2]
[384418575,1757401848377,-151.0,0.00013698,2]
[384418576,1757401848387,-151.0,0.00013698,2]
[384418577,1757401848396,-480.0,0.00013698,2]
[384418578,1757401848406,-480.0,0.00013698,2]
[384418579,1757401848415,-151.0,0.00013698,2]
[384418580,1757401848425,-151.0,0.00013698,2]
[384418581,1757401848435,-480.0,0.00013698,2]
[384418582,1757401848444,-151.0,0.00013698,2]
[384418583,1757401848454,-151.0,0.00013698,2]
[384418584,1757401848463,-151.0,0.00013698,2]
[384418585,1757401848472,-151.0,0.00013698,2]
[384418586,1757401848482,-295.203825,0.00013698,2]
[384418587,1757401848491,-367.4648455,0.00013698,2]
[384418588,1757401848500,-416.25099059,0.00013698,2]
[384418589,1757401848518,-63.74900941,0.00013698,2]
[384418590,1757401848528,-480.0,0.00013698,2]
[384418591,1757401848537,-151.0,0.00013698,2]
[384418592,1757401848547,-151.0,0.00013698,2]
[384418593,1757401848556,-151.0,0.00013698,2]
[384418594,1757401848566,-480.48115642,0.00013698,2]
[384418595,1757401848576,-151.0,0.00013698,2]
[384418596,1757401848585,-525.52708149,0.00013698,2]
[384418597,1757401848595,-151.0,0.00013698,2]
[384418598,1757401848604,-151.0,0.00013698,2]
[384418599,1757401848613,-151.0,0.00013698,2]
[384418600,1757401848624,-480.0,0.00013698,2]
[384418601,1757401848633,-151.0,0.00013698,2]
[384418602,1757401848643,-151.0,0.00013698,2]
[384418603,1757401848652,-151.0,0.00013698,2]
[384418604,1757401848661,-151.0,0.00013698,2]
[384418605,1757401848671,-501.5560034,0.00013698,2]
[384418606,1757401848680,-151.0,0.00013698,2]
[384418607,1757401848690,-151.0,0.00013698,2]
[384418608,1757401848702,-151.0,0.00013698,2]
[384418609,1757401848711,-480.0,0.00013698,2]
[384418610,1757401848721,-151.0,0.00013698,2]
[384418611,1757401848730,-200.87422,0.00013698,2]
[384418612,1757401848740,-480.0,0.00013698,2]
[384418613,1757401848749,-480.0,0.00013698,2]
[384418614,1757401848759,-480.0,0.00013698,2]
[384418615,1757401848768,-480.0,0.00013698,2]
[384418616,1757401848778,-480.53717958,0.00013698,2]
[384418617,1757401848787,-480.0,0.00013698,2]
[384418618,1757401848797,-480.0,0.00013698,2]
[384418619,1757401848806,-480.76180073,0.00013698,2]
[384418620,1757401848816,-480.0,0.00013698,2]
[384418621,1757401848825,-151.0,0.00013698,2]
[384418622,1757401848835,-480.0,0.00013698,2]
[384418623,1757401848844,-151.0,0.00013698,2]
[384418624,1757401848854,-151.0,0.00013698,2]
[384418625,1757401848863,-480.0,0.00013698,2]
[384418626,1757401848875,-152.054811,0.00013698,2]
[384418627,1757401848885,-151.0,0.00013698,2]
[384418628,1757401848895,-114.92404501,0.00013698,2]
[384418629,1757401848913,-365.07595499,0.00013698,2]
[384418630,1757401848923,-151.0,0.00013698,2]
[384418631,1757401848932,-228.627671,0.00013698,2]
[384418632,1757401848942,-151.0,0.00013698,2]
[384418633,1757401848952,-151.73699,0.00013698,2]
[384418634,1757401848961,-480.0,0.00013698,2]
[384418635,1757401848971,-480.0,0.00013698,2]
[384418636,1757401848981,-350.65772107,0.00013698,2]
[384418637,1757401848993,-149.34227893,0.00013698,2]
[384418638,1757401849003,-480.0,0.00013698,2]
[384418639,1757401849013,-480.2684536,0.00013698,2]
[384418640,1757401849022,-566.55513301,0.00013698,2]
[384418641,1757401849032,-480.0,0.00013698,2]
[384418642,1757401849041,-480.0,0.00013698,2]
[384418643,1757401849051,-480.0,0.00013698,2]
[384418644,1757401849060,-602.5,0.00013698,2]
[384418645,1757401849070,-453.59352185,0.00013698,2]
[384418646,1757401849081,-26.40647815,0.00013698,2]
[384418647,1757401849091,-558.23,0.00013698,2]
[384418648,1757401849100,-26.44873408,0.00013698,2]
[384418676,1757402392334,170.86530018,0.00013149,2]
[384418689,1757402717799,-600.0,0.00013173,2]
[384418698,1757402882571,16568.80555846,0.00028791,60]
[384418700,1757402943824,407.67386155,0.00013157,2]
[384418724,1757403032730,-407.67386155,0.0001329,2]
[384418726,1757403032740,-85.84972394,0.00013424,2]
[384418727,1757403032751,-321.82413761,0.00013424,2]
[384418728,1757403032760,-390.90460797,0.0001344,2]
[384418729,1757403032783,-137.06136852,0.0001344,2]
[384418730,1757403032795,-72.03402351,0.0001344,2]
[384418731,1757403032804,-450.24182928,0.000135,2]
[384418733,1757403032813,-674.41235533,0.00013573,2]
[384418734,1757403032823,-168.0,0.00013589,2]
[384418735,1757403032842,-300.0,0.0001359,2]
[384418736,1757403032852,-1200.0,0.00013591,2]
[384418737,1757403032862,-1200.0,0.00013591,2]
[384418738,1757403032871,-20651.75634294,0.00013592,2]
[384418739,1757403032881,-1041.84666434,0.00013598,2]
[384418740,1757403032891,-4606.2389755,0.00013598,2]
[384418741,1757403032902,-1041.84666433,0.00013667,2]
[384418742,1757403032911,-386.302,0.0001367,2]
[384418743,1757403032921,-500.0,0.00013673,2]
[384418744,1757403032931,-500.0,0.00013673,2]
[384418745,1757403032941,-305.29473766,0.00013673,2]
[384418746,1757403032951,-500.0,0.00013673,2]
[384418747,1757403032963,-500.0,0.00013673,2]
[384418748,1757403032973,-364.04709073,0.00013673,2]
[384418749,1757403032982,-500.0,0.00013673,2]
[384418750,1757403032992,-500.0,0.00013673,2]
[384418751,1757403033002,-503.62831199,0.00013673,2]
[384418752,1757403033012,-500.0,0.00013673,2]
[384418753,1757403033022,-500.0,0.00013673,2]
[384418754,1757403033032,-500.0,0.00013673,2]
[384418755,1757403033042,-502.85300624,0.00013673,2]
[384418756,1757403033264,-203.28455737,0.0001368,2]
[384418757,1757403033274,-846.80158213,0.0001368,2]
[384418758,1757403033284,-233.05759179,0.0001368,2]
[384418759,1757403033294,-417.15472785,0.0001368,2]
[384418760,1757403033304,-160.0,0.0001368,2]
[384418761,1757403033313,-217.65034598,0.0001368,2]
[384418763,1757403033323,-530.79566296,0.0001368,2]
[384418765,1757403033332,-160.0,0.0001368,2]
[384418766,1757403033343,-802.15442709,0.00013689,2]
[384418767,1757403033353,-604.36523426,0.00013696,2]
[384418768,1757403033363,-500.0,0.00013697,2]
[384418769,1757403033373,-500.0,0.00013697,2]
[384418770,1757403033387,-370.57676148,0.00013697,2]
[384418771,1757403033398,-500.0,0.00013697,2]
[384418772,1757403033407,-500.0,0.00013697,2]
[384418773,1757403033417,-500.0,0.00013697,2]
[384418774,1757403033427,-500.0,0.00013697,2]
[384418775,1757403033436,-500.0,0.00013697,2]
[384418776,1757403033446,-277.93146724,0.00013697,2]
[384418777,1757403033455,-500.0,0.00013697,2]
[384418778,1757403033465,-500.0,0.00013697,2]
[384418779,1757403033475,-500.0,0.00013697,2]
[384418780,1757403033484,-500.0,0.00013697,2]
[384418781,1757403033494,-500.0,0.00013697,2]
[384418782,1757403033504,-500.0,0.00013697,2]
[384418783,1757403033514,-420.85025814,0.00013697,2]
[384418784,1757403033524,-500.0,0.00013697,2]
[384418785,1757403033534,-500.0,0.00013697,2]
[384418786,1757403033544,-500.0,0.00013697,2]
[384418787,1757403033554,-182.10785444,0.00013697,2]
[384418788,1757403033563,-500.0,0.00013697,2]
[384418789,1757403033572,-500.0,0.00013697,2]
[384418790,1757403033582,-500.0,0.00013697,2]
[384418791,1757403033591,-500.0,0.00013697,2]
[384418792,1757403033601,-500.0,0.00013697,2]
[384418793,1757403033610,-500.0,0.00013697,2]
[384418794,1757403033620,-500.0,0.00013697,2]
[384418795,1757403033629,-500.0,0.00013697,2]
[384418796,1757403033639,-500.0,0.00013697,2]
[384418797,1757403033651,-500.0,0.00013697,2]
[384418798,1757403033661,-500.0,0.00013697,2]
[384418799,1757403033671,-500.0,0.00013697,2]
[384418800,1757403033682,-500.0,0.00013697,2]
[384418801,1757403033692,-500.0,0.00013697,2]
[384418802,1757403033702,-500.0,0.00013697,2]
[384418803,1757403033712,-247.92744672,0.00013697,2]
[384418804,1757403033722,-413.28254991,0.00013697,2]
[384418805,1757403033735,-500.0,0.00013697,2]
[384418806,1757403033747,-500.0,0.00013697,2]
[384418807,1757403033757,-500.0,0.00013697,2]
[384418808,1757403033766,-500.0,0.00013697,2]
[384418809,1757403033776,-500.0,0.00013697,2]
[384418810,1757403033785,-500.0,0.00013697,2]
[384418811,1757403033795,-500.0,0.00013697,2]
[384418812,1757403033804,-500.0,0.00013697,2]
[384418813,1757403033813,-500.0,0.00013697,2]
[384418814,1757403033823,-287.6523233,0.00013697,2]
[384418815,1757403033832,-303.20270953,0.00013697,2]
[384418816,1757403033842,-500.0,0.00013697,2]
[384418817,1757403033853,-500.0,0.00013697,2]
[384418818,1757403033863,-154.17196201,0.00013697,2]
[384418819,1757403033873,-500.0,0.00013697,2]
[384418820,1757403033883,-500.0,0.00013697,2]
[384418821,1757403033892,-446.96086779,0.00013697,2]
[384418822,1757403033903,-500.0,0.00013697,2]
[384418823,1757403033912,-500.0,0.00013697,2]
[384418824,1757403033922,-500.0,0.00013697,2]
[384418825,1757403033931,-453.05850865,0.00013697,2]
[384418826,1757403033941,-500.0,0.00013697,2]
[384418827,1757403033951,-500.0,0.00013697,2]
[384418828,1757403033960,-551.21201223,0.00013698,2]
[384418829,1757403033969,-186.0,0.00013698,2]
[384418830,1757403033978,-9617.3766618,0.00013698,2]
[384418831,1757403033988,-480.0,0.00013698,2]
[384418832,1757403033997,-480.0,0.00013698,2]
[384418833,1757403034007,-480.0,0.00013698,2]
[384418834,1757403034016,-488.40661778,0.00013698,2]
[384418835,1757403034026,-550.62,0.00013698,2]
[384418836,1757403034035,-486.43758985,0.00013698,2]
[384418837,1757403034045,-480.0,0.00013698,2]
[384418838,1757403034055,-480.0,0.00013698,2]
[384418839,1757403034065,-480.0,0.00013698,2]
[384418840,1757403034075,-546.03148364,0.00013698,2]
[384418841,1757403034084,-480.0,0.00013698,2]
[384418842,1757403034094,-483.36055623,0.00013698,2]
[384418843,1757403034103,-476.88742817,0.00013698,2]
[384418844,1757403034112,-480.0,0.00013698,2]
[384418845,1757403034121,-480.0,0.00013698,2]
[384418846,1757403034131,-480.0,0.00013698,2]
[384418847,1757403034140,-487.9665757,0.00013698,2]
[384418848,1757403034151,-480.0,0.00013698,2]
[384418849,1757403034161,-482.51818291,0.00013698,2]
[384418850,1757403034174,-482.95110672,0.00013698,2]
[384418851,1757403034183,-480.0,0.00013698,2]
[384418852,1757403034193,-189.57378762,0.00013698,2]
[384418853,1757403034209,-290.42621238,0.00013698,2]
[384418854,1757403034218,-480.0,0.00013698,2]
[384418855,1757403034227,-35.08680324,0.00013698,2]
[384418867,1757403039227,-301.77373254,0.00013455,2]
[384418882,1757403043019,-50.77794439,0.00013455,2]
[384418886,1757403043733,-832.66537745,0.00013455,2]
[384418887,1757403043744,-325.37386298,0.00013455,2]
[384418888,1757403043756,-889.40908264,0.00013455,2]
[384418889,1757403043766,-451.17305436,0.00013698,2]
[384418890,1757403043775,-480.0,0.00013698,2]
[384418891,1757403043784,-481.77300712,0.00013698,2]
[384418892,1757403043794,-1019.575102,0.00013698,2]
[384418893,1757403043803,-485.05326999,0.00013698,2]
[384418894,1757403043813,-480.0,0.00013698,2]
[384418895,1757403043822,-25.01648426,0.00013698,2]
[384419125,1757403046682,-454.98351574,0.00013698,2]
[384419127,1757403046691,-17.97581801,0.00013698,2]
[384419129,1757403046708,-462.02418199,0.00013698,2]
[384419131,1757403046718,-480.0,0.00013698,2]
[384419133,1757403046727,-480.0,0.00013698,2]
[384419134,1757403046737,-480.0,0.00013698,2]
[384419136,1757403046746,-483.63198522,0.00013698,2]
[384419138,1757403046755,-480.0,0.00013698,2]
[384419140,1757403046765,-422.15046608,0.00013698,2]
[384419142,1757403046775,-480.0,0.00013698,2]
[384419144,1757403046784,-480.0,0.00013698,2]
[384419146,1757403046793,-480.0,0.00013698,2]
[384419148,1757403046803,-480.0,0.00013698,2]
[384419150,1757403046812,-483.21816347,0.00013698,2]
[384419152,1757403046822,-480.0,0.00013698,2]
[384419154,1757403046832,-480.0,0.00013698,2]
[384419157,1757403046841,-480.0,0.00013698,2]
[384419158,1757403046850,-480.0,0.00013698,2]
[384419161,1757403046860,-480.0,0.00013698,2]
[384419163,1757403046870,-480.0,0.00013698,2]
[384419165,1757403046879,-480.0,0.00013698,2]
[384419166,1757403046889,-480.0,0.00013698,2]
[384419168,1757403046899,-480.0,0.00013698,2]
[384419170,1757403046909,-480.0,0.00013698,2]
[384419172,1757403046918,-480.0,0.00013698,2]
[384419174,1757403046927,-481.62868839,0.00013698,2]
[384419176,1757403046936,-480.0,0.00013698,2]
[384419178,1757403046946,-542.9682131,0.00013698,2]
[384419180,1757403046956,-454.06547925,0.00013698,2]
[384419182,1757403046965,-484.44637025,0.00013698,2]
[384419184,1757403046974,-480.0,0.00013698,2]
[384419186,1757403046984,-480.0,0.00013698,2]
[384419188,1757403046994,-481.72598321,0.00013698,2]
[384419190,1757403047003,-480.0,0.00013698,2]
[384419192,1757403047012,-481.30380213,0.00013698,2]
[384419194,1757403047022,-480.0,0.00013698,2]
[384419196,1757403047031,-480.0,0.00013698,2]
[384419198,1757403047041,-480.0,0.00013698,2]
[384419200,1757403047050,-480.0,0.00013698,2]
[384419202,1757403047059,-154.009083,0.00013698,2]
[384419204,1757403047069,-482.47732258,0.00013698,2]
[384419206,1757403047078,-480.0,0.00013698,2]
[384419208,1757403047087,-480.0,0.00013698,2]
[384419210,1757403047096,-481.82338049,0.00013698,2]
[384419212,1757403047106,-480.0,0.00013698,2]
[384419214,1757403047115,-151.0,0.00013698,2]
[384419216,1757403047125,-151.0,0.00013698,2]
[384419218,1757403047134,-151.0,0.00013698,2]
[384419232,1757403047268,-480.0,0.00013698,2]
[384419234,1757403047279,-151.0,0.00013698,2]
[384419236,1757403047290,-151.0,0.00013698,2]
[384419239,1757403047299,-151.0,0.00013698,2]
[384419241,1757403047309,-151.0,0.00013698,2]
[384419242,1757403047319,-163.285452,0.00013698,2]
[384419244,1757403047328,-480.0,0.00013698,2]
[384419246,1757403047337,-480.0,0.00013698,2]
[384419248,1757403047347,-480.0,0.00013698,2]
[384419250,1757403047357,-480.0,0.00013698,2]
[384419252,1757403047366,-480.0,0.00013698,2]
[384419254,1757403047376,-480.93856137,0.00013698,2]
[384419256,1757403047385,-500.0,0.00013698,2]
[384419258,1757403047394,-500.0,0.00013698,2]
[384419260,1757403047403,-500.0,0.00013698,2]
[384419262,1757403047414,-591.63301921,0.00013698,2]
[384419264,1757403047424,-482.25436517,0.00013698,2]
[384419266,1757403047434,-480.0,0.00013698,2]
[384419268,1757403047444,-480.0,0.00013698,2]
[384419270,1757403047453,-480.0,0.00013698,2]
[384419272,1757403047462,-380.05260832,0.00013698,2]
[384419274,1757403047472,-151.0,0.00013698,2]
[384419276,1757403047481,-151.0,0.00013698,2]
[384419278,1757403047491,-151.0,0.00013698,2]
[384419280,1757403047501,-151.0,0.00013698,2]
[384419282,1757403047510,-480.0,0.00013698,2]
[384419284,1757403047519,-151.0,0.00013698,2]
[384419286,1757403047529,-151.0,0.00013698,2]
[384419288,1757403047539,-480.0,0.00013698,2]
[384419290,1757403047550,-151.0,0.00013698,2]
[384419292,1757403047560,-151.0,0.00013698,2]
[384419294,1757403047570,-151.0,0.00013698,2]
[384419296,1757403047579,-151.581267,0.00013698,2]
[384419298,1757403047589,-484.62150951,0.00013698,2]
[384419300,1757403047600,-480.54661573,0.00013698,2]
[384419302,1757403047609,-480.0,0.00013698,2]
[384419304,1757403047621,-480.7552505,0.00013698,2]
[384419306,1757403047630,-480.0,0.00013698,2]
[384419308,1757403047639,-480.0,0.00013698,2]
[384419310,1757403047648,-480.0,0.00013698,2]
[384419312,1757403047658,-480.0,0.00013698,2]
[384419313,1757403047671,-481.24763182,0.00013698,2]
[384419314,1757403047680,-480.0,0.00013698,2]
[384419315,1757403047690,-480.0,0.00013698,2]
[384419316,1757403047700,-480.0,0.00013698,2]
[384419317,1757403047710,-480.0,0.00013698,2]
[384419318,1757403047719,-480.16693413,0.00013698,2]
[384419319,1757403047729,-480.0,0.00013698,2]
[384419320,1757403047739,-480.0,0.00013698,2]
[384419321,1757403047749,-480.0,0.00013698,2]
[384419322,1757403047758,-480.0,0.00013698,2]
[384419323,1757403047767,-480.0,0.00013698,2]
[384419324,1757403047776,-480.50104287,0.00013698,2]
[384419325,1757403047787,-151.0,0.00013698,2]
[384419326,1757403047796,-480.0,0.00013698,2]
[384419327,1757403047806,-151.0,0.00013698,2]
[384419328,1757403047815,-480.0,0.00013698,2]
[384419329,1757403047825,-151.0,0.00013698,2]
[384419330,1757403047835,-151.0,0.00013698,2]
[384419331,1757403047844,-151.0,0.00013698,2]
[384419332,1757403047853,-151.0,0.00013698,2]
[384419333,1757403047863,-151.0,0.00013698,2]
[384419334,1757403047872,-151.0,0.00013698,2]
[384419335,1757403047881,-151.0,0.00013698,2]
[384419336,1757403047891,-151.0,0.00013698,2]
[384419337,1757403047900,-480.31100443,0.00013698,2]
[384419338,1757403047911,-151.0,0.00013698,2]
[384419339,1757403047921,-480.0,0.00013698,2]
[384419340,1757403047930,-480.31892802,0.00013698,2]
[384419341,1757403047939,-218.590437,0.00013698,2]
[384419343,1757403047949,-481.32031368,0.00013698,2]
[384419344,1757403047959,-480.0,0.00013698,2]
[384419345,1757403047968,-628.77768496,0.00013698,2]
[384419346,1757403047978,-500.0,0.00013698,2]
[384419347,1757403047987,-500.0,0.00013698,2]
[384419348,1757403047997,-500.0,0.00013698,2]
[384419349,1757403048007,-315.4201006,0.00013698,2]
[384419350,1757403048017,-480.52730567,0.00013698,2]
[384419351,1757403048027,-480.66373872,0.00013698,2]
[384419352,1757403048037,-481.1952152,0.00013698,2]
[384419353,1757403048047,-480.0,0.00013698,2]
[384419354,1757403048057,-154.75186631,0.00013698,2]
[384419355,1757403048066,-480.0,0.00013698,2]
[384419356,1757403048074,-481.00096817,0.00013698,2]
[384419357,1757403048083,-480.65831597,0.00013698,2]
[384419358,1757403048091,-480.0,0.00013698,2]
[384419359,1757403048100,-480.0,0.00013698,2]
[384419360,1757403048109,-480.0,0.00013698,2]
[384419361,1757403048118,-480.0,0.00013698,2]
[384419362,1757403048128,-481.5872875,0.00013698,2]
[384419363,1757403048137,-480.0,0.00013698,2]
[384419364,1757403048147,-480.0,0.00013698,2]
[384419365,1757403048157,-481.26481889,0.00013698,2]
[384419366,1757403048169,-480.09401677,0.00013698,2]
[384419367,1757403048183,-480.0,0.00013698,2]
[384419368,1757403048192,-480.0,0.00013698,2]
[384419369,1757403048202,-480.0,0.00013698,2]
[384419370,1757403048213,-484.7753887,0.00013698,2]
[384419371,1757403048223,-491.24173671,0.00013698,2]
[384419372,1757403048234,-151.0,0.00013698,2]
[384419373,1757403048245,-151.0,0.00013698,2]
[384419374,1757403048255,-151.0,0.00013698,2]
[384419375,1757403048266,-151.0,0.00013698,2]
[384419376,1757403048276,-480.0,0.00013698,2]
[384419377,1757403048286,-151.0,0.00013698,2]
[384419378,1757403048296,-151.0,0.00013698,2]
[384419379,1757403048306,-213.83252,0.00013698,2]
[384419380,1757403048316,-480.0,0.00013698,2]
[384419381,1757403048326,-480.0,0.00013698,2]
[384419382,1757403048336,-480.0,0.00013698,2]
[384419383,1757403048346,-480.0,0.00013698,2]
[384419384,1757403048356,-480.0,0.00013698,2]
[384419385,1757403048366,-225.51335129,0.00013698,2]
[384419386,1757403048376,-480.0,0.00013698,2]
[384419387,1757403048386,-480.0,0.00013698,2]
[384419388,1757403048395,-480.0,0.00013698,2]
[384419389,1757403048405,-480.0,0.00013698,2]